{"text_format":"2","workbook":"xlsx","n_sheets":3,"sheets":["Restricciones","Compatibilidades","MISC"],"not_rendered":{"charts":0,"images":0,"macros":0,"external_links":0,"defined_names":0,"comments":0,"pivot_tables":0},"unopened":[],"bounds":{"document_bytes":16777216,"sheet_cells":100000,"run_cost":"one","rows_first":2000,"rows_last":500,"rows_between":2000,"halvings":0,"cell_chars":16384,"cell_head_chars":4096},"cells_cut":0,"cells_raw":0,"read":"whole","date_system":"1900"}

{"sheet":"Restricciones","index":0,"n_rows":18,"n_cols":7,"rows_kept":18,"cut":false,"hidden":false,"merged":[]}
["Definición de 'Load Cases'","Accion IAPF","Direccion","Tipo","Permanentes","Bidireccional?","Si y solo si"]
["H1. PP","Resto","Desfavorable","Constante","x"]
["H2. CM","Resto","Desfavorable","Constante","x"]
["H3.1 SC FF","Trafico","Desfavorable","Variable"]
["H3.2. SC FF","Trafico","Desfavorable","Variable"]
["H3.3. SC FF","Trafico","Desfavorable","Variable"]
["H4.1. E. Tierras SIMÉTRICO","Resto","Desfavorable","Variable"]
["H4.2. E. Tierras ASIM","Resto","Desfavorable","Variable"]
["H5.1. SC hastial izq","Resto","Desfavorable","Variable"]
["H5.2. SC hastial dcho","Resto","Desfavorable","Variable"]
["H6. Arranque y frenado","Resto","Desfavorable","Variable",null,"x"]
["H7. Efecto Marston","Resto","Desfavorable","Constante","x"]
["H8.1. SC interna nominal","Resto","Desfavorable","Variable"]
["H8.2. SC interna MAX","Resto","Desfavorable","Variable"]
["H8.3. SC interna ASIM","Resto","Desfavorable","Variable"]
["H9.1. Sismo Horizontal","Resto","Desfavorable","Variable",null,"x"]
["H9.2. Sismo Vertical","Resto","Desfavorable","Variable",null,"x"]
["H9.3. Sismo hastiales","Resto","Desfavorable","Variable",null,"x"]

{"sheet":"Compatibilidades","index":1,"n_rows":121,"n_cols":121,"rows_kept":121,"cut":false,"hidden":false,"merged":[]}
["CASO",{"$f":"TRANSPOSE(Restricciones!A2:A121)","v":"H1. PP"},"H2. CM","H3.1 SC FF","H3.2. SC FF","H3.3. SC FF","H4.1. E. Tierras SIMÉTRICO","H4.2. E. Tierras ASIM","H5.1. SC hastial izq","H5.2. SC hastial dcho","H6. Arranque y frenado","H7. Efecto Marston","H8.1. SC interna nominal","H8.2. SC interna MAX","H8.3. SC interna ASIM","H9.1. Sismo Horizontal","H9.2. Sismo Vertical","H9.3. Sismo hastiales",0,0,0,0,0,0,0,0,0,0,0,0,0,0,0,0,0,0,0,0,0,0,0,0,0,0,0,0,0,0,0,0,0,0,0,0,0,0,0,0,0,0,0,0,0,0,0,0,0,0,0,0,0,0,0,0,0,0,0,0,0,0,0,0,0,0,0,0,0,0,0,0,0,0,0,0,0,0,0,0,0,0,0,0,0,0,0,0,0,0,0,0,0,0,0,0,0,0,0,0,0,0,0]
[{"$f":"Restricciones!A2","v":"H1. PP"},null,"x","x","x"]
[{"$f":"Restricciones!A3","v":"H2. CM"},null,null,"x","x"]
[{"$f":"Restricciones!A4","v":"H3.1 SC FF"},null,null,null,"x"]
[{"$f":"Restricciones!A5","v":"H3.2. SC FF"}]
[{"$f":"Restricciones!A6","v":"H3.3. SC FF"}]
[{"$f":"Restricciones!A7","v":"H4.1. E. Tierras SIMÉTRICO"}]
[{"$f":"Restricciones!A8","v":"H4.2. E. Tierras ASIM"}]
[{"$f":"IF(ISNA(Restricciones!A9),NA(),Restricciones!A9)","v":"H5.1. SC hastial izq"}]
[{"$f":"Restricciones!A10","v":"H5.2. SC hastial dcho"}]
[{"$f":"Restricciones!A11","v":"H6. Arranque y frenado"}]
[{"$f":"Restricciones!A12","v":"H7. Efecto Marston"}]
[{"$f":"Restricciones!A13","v":"H8.1. SC interna nominal"}]
[{"$f":"Restricciones!A14","v":"H8.2. SC interna MAX"}]
[{"$f":"Restricciones!A15","v":"H8.3. SC interna ASIM"}]
[{"$f":"Restricciones!A16","v":"H9.1. Sismo Horizontal"}]
[{"$f":"Restricciones!A17","v":"H9.2. Sismo Vertical"}]
[{"$f":"Restricciones!A18","v":"H9.3. Sismo hastiales"}]
[{"$f":"Restricciones!A19","v":0}]
[{"$f":"Restricciones!A20","v":0}]
[{"$f":"Restricciones!A21","v":0}]
[{"$f":"Restricciones!A22","v":0}]
[{"$f":"Restricciones!A23","v":0}]
[{"$f":"Restricciones!A24","v":0}]
[{"$f":"Restricciones!A25","v":0}]
[{"$f":"Restricciones!A26","v":0}]
[{"$f":"Restricciones!A27","v":0}]
[{"$f":"Restricciones!A28","v":0}]
[{"$f":"Restricciones!A29","v":0}]
[{"$f":"Restricciones!A30","v":0}]
[{"$f":"Restricciones!A31","v":0}]
[{"$f":"Restricciones!A32","v":0}]
[{"$f":"Restricciones!A33","v":0}]
[{"$f":"Restricciones!A34","v":0}]
[{"$f":"Restricciones!A35","v":0}]
[{"$f":"Restricciones!A36","v":0}]
[{"$f":"Restricciones!A37","v":0}]
[{"$f":"Restricciones!A38","v":0}]
[{"$f":"Restricciones!A39","v":0}]
[{"$f":"Restricciones!A40","v":0}]
[{"$f":"Restricciones!A41","v":0}]
[{"$f":"Restricciones!A42","v":0}]
[{"$f":"Restricciones!A43","v":0}]
[{"$f":"Restricciones!A44","v":0}]
[{"$f":"Restricciones!A45","v":0}]
[{"$f":"Restricciones!A46","v":0}]
[{"$f":"Restricciones!A47","v":0}]
[{"$f":"Restricciones!A48","v":0}]
[{"$f":"Restricciones!A49","v":0}]
[{"$f":"Restricciones!A50","v":0}]
[{"$f":"Restricciones!A51","v":0}]
[{"$f":"Restricciones!A52","v":0}]
[{"$f":"Restricciones!A53","v":0}]
[{"$f":"Restricciones!A54","v":0}]
[{"$f":"Restricciones!A55","v":0}]
[{"$f":"Restricciones!A56","v":0}]
[{"$f":"Restricciones!A57","v":0}]
[{"$f":"Restricciones!A58","v":0}]
[{"$f":"Restricciones!A59","v":0}]
[{"$f":"Restricciones!A60","v":0}]
[{"$f":"Restricciones!A61","v":0}]
[{"$f":"Restricciones!A62","v":0}]
[{"$f":"Restricciones!A63","v":0}]
[{"$f":"Restricciones!A64","v":0}]
[{"$f":"Restricciones!A65","v":0}]
[{"$f":"Restricciones!A66","v":0}]
[{"$f":"Restricciones!A67","v":0}]
[{"$f":"Restricciones!A68","v":0}]
[{"$f":"Restricciones!A69","v":0}]
[{"$f":"Restricciones!A70","v":0}]
[{"$f":"Restricciones!A71","v":0}]
[{"$f":"Restricciones!A72","v":0}]
[{"$f":"Restricciones!A73","v":0}]
[{"$f":"Restricciones!A74","v":0}]
[{"$f":"Restricciones!A75","v":0}]
[{"$f":"Restricciones!A76","v":0}]
[{"$f":"Restricciones!A77","v":0}]
[{"$f":"Restricciones!A78","v":0}]
[{"$f":"Restricciones!A79","v":0}]
[{"$f":"Restricciones!A80","v":0}]
[{"$f":"Restricciones!A81","v":0}]
[{"$f":"Restricciones!A82","v":0}]
[{"$f":"Restricciones!A83","v":0}]
[{"$f":"Restricciones!A84","v":0}]
[{"$f":"Restricciones!A85","v":0}]
[{"$f":"Restricciones!A86","v":0}]
[{"$f":"Restricciones!A87","v":0}]
[{"$f":"Restricciones!A88","v":0}]
[{"$f":"Restricciones!A89","v":0}]
[{"$f":"Restricciones!A90","v":0}]
[{"$f":"Restricciones!A91","v":0}]
[{"$f":"Restricciones!A92","v":0}]
[{"$f":"Restricciones!A93","v":0}]
[{"$f":"Restricciones!A94","v":0}]
[{"$f":"Restricciones!A95","v":0}]
[{"$f":"Restricciones!A96","v":0}]
[{"$f":"Restricciones!A97","v":0}]
[{"$f":"Restricciones!A98","v":0}]
[{"$f":"Restricciones!A99","v":0}]
[{"$f":"Restricciones!A100","v":0}]
[{"$f":"Restricciones!A101","v":0}]
[{"$f":"Restricciones!A102","v":0}]
[{"$f":"Restricciones!A103","v":0}]
[{"$f":"Restricciones!A104","v":0}]
[{"$f":"Restricciones!A105","v":0}]
[{"$f":"Restricciones!A106","v":0}]
[{"$f":"Restricciones!A107","v":0}]
[{"$f":"Restricciones!A108","v":0}]
[{"$f":"Restricciones!A109","v":0}]
[{"$f":"Restricciones!A110","v":0}]
[{"$f":"Restricciones!A111","v":0}]
[{"$f":"Restricciones!A112","v":0}]
[{"$f":"Restricciones!A113","v":0}]
[{"$f":"Restricciones!A114","v":0}]
[{"$f":"Restricciones!A115","v":0}]
[{"$f":"Restricciones!A116","v":0}]
[{"$f":"Restricciones!A117","v":0}]
[{"$f":"Restricciones!A118","v":0}]
[{"$f":"Restricciones!A119","v":0}]
[{"$f":"Restricciones!A120","v":0}]
[{"$f":"Restricciones!A121","v":0}]

{"sheet":"MISC","index":2,"n_rows":5,"n_cols":5,"rows_kept":5,"cut":false,"hidden":false,"merged":[]}
[]
["Constante",null,"Favorable",null,"Trafico"]
["No constante",null,"Desfavorable",null,"Resto"]
["Variable"]
["Accidental"]